bitfinex-derivatives/quotes_ETHF0:USTF0_20250112
["timestamp","ask_amount","ask_price","bid_price","bid_amount"]
[1736679460882,0.21563,3247.7,3247.6,1.24060706]
[1736679468683,0.15303998,3247.8,3247.6,1.02496706]
[1736679468987,0.36866998,3247.8,3247.7,0.21563]
[1736679471086,0.21563,3247.7,3247.6,1.02496706]
[1736679472383,0.21563,3247.7,3247.6,1.24060706]
[1736679476894,0.36668283,3247.7,3247.6,1.24060706]
[1736679480497,0.36668283,3247.7,3247.6,1.02496706]
[1736679481697,0.36668283,3247.7,3247.5,0.21564]
[1736679481698,0.21564,3247.6,3247.3,44.0078]
[1736679481894,0.21565,3247.4,3247.3,44.22345]
[1736679482201,0.15105283,3247.7,3247.3,44.0078]
[1736679482389,0.21564,3247.6,3247.5,1.24060706]
[1736679482590,0.21564,3247.6,3247.5,1.02496706]
[1736679483392,0.21564,3247.6,3247.5,1.24060706]
[1736679485499,0.15105283,3247.7,3247.6,0.21564]
[1736679485797,0.15105283,3247.7,3247.6,0.65724]
[1736679485993,0.15105283,3247.7,3247.6,1.13274]
[1736679486300,0.15105283,3247.7,3247.6,41.93274]
[1736679486599,0.15105283,3247.7,3247.6,42.36794]
[1736679487593,0.15105283,3247.7,3247.6,1.56794]
[1736679489891,0.36668283,3247.7,3247.6,1.56794]
[1736679490398,0.21563,3247.7,3247.6,1.56794]
[1736679490588,0.21563,3247.8,3247.7,0.21563]
[1736679490791,1.3805,3248.0,3247.7,1.02496706]
[1736679490996,0.21562,3247.8,3247.7,1.02496706]
[1736679492298,0.21566,3247.3,3247.0,0.21567]
[1736679492600,0.21565,3247.4,3247.2,1.02496706]
[1736679492993,0.4425,3247.6,3247.2,1.02496706]
[1736679493302,0.21566,3247.3,3247.2,1.02496706]
[1736679494395,0.21568,3247.0,3246.9,4.23276706]
[1736679495198,5.14346706,3247.5,3246.9,4.23276706]
[1736679495199,4.1185,3247.5,3246.9,4.23276706]
[1736679495401,4.1185,3247.5,3247.3,1.02496706]
[1736679495699,4.33414,3247.5,3247.4,0.4743]
[1736679496401,1.12634,3247.5,3247.4,0.4743]
[1736679496605,0.15598029,3247.8,3247.4,0.4743]
[1736679496907,0.15598029,3247.8,3247.7,1.24059706]
[1736679499303,0.15598029,3247.8,3247.7,0.21563]
[1736679502705,0.21564,3247.6,3247.5,7.43906755]
[1736679503206,0.21563,3247.7,3247.5,2.82759974]
[1736679503809,0.59738029,3247.8,3247.5,2.82759974]
[1736679504009,0.21564,3247.6,3247.5,2.82759974]
[1736679504506,0.21564,3247.6,3247.5,2.61195974]
[1736679505408,0.21564,3247.5,3247.4,1.14515]
[1736679505605,0.21564,3247.5,3247.4,0.9295]
[1736679506108,0.21564,3247.5,3247.4,0.4743]
[1736679506498,0.21565,3247.4,3247.3,4.82710781]
[1736679506703,0.15068298,3247.6,3247.2,4.82710781]
[1736679506903,0.4735,3247.3,3247.2,4.82710781]
[1736679507411,0.68916,3247.3,3247.2,4.82710781]
[1736679507611,0.68916,3247.3,3247.0,48.04066172]
[1736679507612,0.4735,3247.3,3247.0,40.8]
[1736679507807,0.21567,3247.1,3247.0,40.8]
[1736679508112,0.21567,3247.1,3247.0,41.01568]
[1736679508408,0.21567,3247.1,3247.0,0.21568]
[1736679508802,0.4725,3247.2,3246.9,3.6678]
[1736679509211,0.21567,3247.1,3247.0,0.21567]
[1736679511914,0.68817,3247.2,3247.1,0.21567]
[1736679516519,0.68916,3247.3,3247.2,0.21566]
[1736679516719,0.21566,3247.3,3247.2,0.21566]
[1736679522523,0.37226112,3247.3,3247.2,0.21566]
[1736679526926,0.15660112,3247.3,3247.2,0.21566]
[1736679527925,0.37226112,3247.3,3247.2,0.21566]
[1736679529225,0.15660112,3247.3,3247.2,0.21566]
[1736679531626,0.37226112,3247.3,3247.2,0.21566]
[1736679531823,0.15660112,3247.3,3247.2,0.21566]
[1736679535423,0.21566,3247.4,3247.1,1.02527911]
[1736679535628,0.21566,3247.4,3247.3,0.21566]
[1736679535832,0.37280778,3247.4,3247.3,0.21566]
[1736679538324,0.15714778,3247.4,3247.3,1.24093911]
[1736679539825,0.37279778,3247.4,3247.3,1.24093911]
[1736679540025,0.15714778,3247.4,3247.3,1.24093911]
[1736679540323,0.15714778,3247.4,3247.3,0.21566]
[1736679540830,0.15714778,3247.4,3247.3,1.24093911]
[1736679541136,0.15714778,3247.4,3247.3,0.21566]
[1736679541428,0.37279778,3247.4,3247.3,0.21566]
[1736679541934,0.15714778,3247.4,3247.1,6.77588692]
[1736679542134,0.21566,3247.3,3247.2,0.21566]
[1736679542931,0.37279778,3247.4,3247.3,0.21566]
[1736679545323,0.15714778,3247.4,3247.1,0.9235]
[1736679545523,0.21566,3247.3,3247.2,0.21566]
[1736679553635,0.37306409,3247.3,3247.2,0.21566]
[1736679559752,0.21566,3247.2,3247.1,1.94877911]
[1736679559943,0.21566,3247.2,3247.1,0.9235]
[1736679560135,0.21566,3247.2,3247.1,1.13917]
[1736679563241,0.21566,3247.2,3247.1,0.9235]
[1736679563642,0.21566,3247.2,3247.1,1.13917]
[1736679566744,0.21566,3247.2,3247.1,2.16444911]
[1736679567942,0.37049001,3247.2,3247.1,1.48187911]
[1736679568140,0.37049001,3247.2,3247.1,0.4566]
[1736679568745,0.21568,3247.0,3246.9,9.73586692]
[1736679569147,0.21568,3247.0,3246.9,4.90875911]
[1736679570751,0.21568,3247.0,3246.9,1.70095911]
[1736679571047,0.21568,3247.0,3246.9,4.90875911]
[1736679571846,0.21568,3247.0,3246.9,1.70095911]
[1736679575249,0.21568,3247.0,3246.9,0.46]
[1736679581454,0.37110626,3247.0,3246.9,0.46]
[1736679581849,0.15542626,3247.0,3246.8,0.435]
[1736679582049,0.21568,3246.9,3246.8,0.435]
[1736679582260,0.4755,3246.9,3246.7,0.439]
[1736679582452,0.2157,3246.7,3246.6,4.82710781]
[1736679583450,0.2157,3246.6,3246.5,3.90451]
[1736679583650,0.2157,3246.6,3246.5,4.92978911]
[1736679583949,0.2157,3246.6,3246.5,1.72198911]
[1736679584159,0.2157,3246.6,3246.5,1.50627911]
[1736679586655,0.2157,3246.6,3246.5,0.481]
[1736679588352,1.24097911,3246.6,3246.5,0.481]
[1736679588560,0.21573,3246.2,3246.1,1.24100911]
[1736679588756,0.21573,3246.2,3246.1,1.69460911]
[1736679589659,0.21573,3246.2,3246.1,0.66933]
[1736679593754,0.21573,3246.3,3246.2,0.21572]
[1736679595863,0.9228,3246.7,3246.1,0.4536]
[1736679596054,0.21571,3246.5,3246.4,0.21571]
[1736679596360,0.37054976,3246.5,3246.4,0.21571]
[1736679600062,0.15483976,3246.5,3246.4,0.21571]
[1736679601661,0.15483976,3246.5,3246.4,3.42351]
[1736679601959,0.95,3247.4,3246.4,3.2078]
[1736679602156,0.21568,3246.9,3246.8,3.2078]
[1736679602354,0.21571,3246.5,3246.4,3.2078]
[1736679602554,0.2157,3246.7,3246.2,3.42352]
[1736679602754,0.21572,3246.4,3246.3,0.21572]
[1736679602959,0.21572,3246.4,3246.3,5.04282781]
[1736679603160,0.21572,3246.4,3246.3,4.82710781]
[1736679603565,0.21572,3246.4,3246.3,5.04282781]
[1736679603862,0.21572,3246.5,3246.4,0.21571]
[1736679604465,4.6382,3246.8,3246.2,3.2078]
[1736679604661,0.21571,3246.5,3246.4,0.21571]
[1736679606961,0.15290782,3246.5,3246.4,0.21571]
[1736679607166,0.36861782,3246.5,3246.4,0.21571]
[1736679607871,0.21572,3246.4,3246.3,0.68922]
[1736679608165,0.15290782,3246.5,3246.4,0.21572]
[1736679609069,0.15290782,3246.5,3246.4,41.01572]
[1736679609959,0.21567,3247.1,3247.0,0.21567]
[1736679610363,1.15517,3247.2,3247.1,0.21567]
[1736679610668,0.21567,3247.2,3247.1,0.21567]
[1736679611273,0.21567,3247.1,3247.0,0.21567]
[1736679611863,0.4512,3247.3,3246.7,3.2078]
[1736679612060,0.15702664,3247.2,3247.1,0.21567]
[1736679612469,0.37268664,3247.2,3247.1,0.21567]
[1736679613966,0.15702664,3247.2,3247.1,0.21567]
[1736679615777,0.37268664,3247.2,3247.1,0.21567]
[1736679616569,0.15702664,3247.2,3247.1,0.21567]
[1736679616975,0.21563,3247.7,3247.0,0.53919]
[1736679617164,0.21563,3247.7,3247.6,0.21564]
[1736679617569,0.4366,3247.9,3247.5,0.9146]
[1736679617970,0.21563,3247.8,3247.7,0.21563]
[1736679620673,0.21562,3247.8,3247.7,0.21563]
[1736679620870,3.6561,3248.1,3247.5,0.9146]
[1736679625871,0.15263269,3247.6,3247.5,0.9146]
[1736679628974,0.15263269,3247.6,3247.5,1.3934]
[1736679630284,0.15263269,3247.6,3247.5,42.1934]
[1736679634986,0.002,3248.5,3247.5,47.1934]
[1736679635286,0.4801,3248.4,3248.1,3.2078]
[1736679635483,0.4506,3248.3,3248.1,3.2078]
[1736679639187,0.4506,3248.3,3247.7,3.2078]
[1736679642180,0.4506,3248.3,3247.5,42.44467917]
[1736679642181,0.4506,3248.3,3247.8,3.2078]
[1736679642588,0.4506,3248.3,3247.9,0.4718]
[1736679643981,0.15628322,3248.0,3247.9,0.4718]
[1736679644180,0.15628322,3248.0,3247.8,3.2078]
[1736679644381,0.442,3247.9,3247.8,3.2078]
[1736679650088,1.3693,3247.9,3247.8,3.2078]
[1736679652189,0.9177,3247.9,3247.8,3.2078]
[1736679654592,0.15628322,3248.0,3247.8,3.2078]
[1736679655591,0.9171,3248.2,3247.8,3.2078]
[1736679657086,0.15058727,3247.9,3247.8,3.2078]
[1736679670000,0.15058727,3247.9,3247.4,0.4806]
[1736679670299,3.35838727,3247.9,3247.4,0.4806]
[1736679670502,3.2078,3247.9,3247.4,0.4806]
[1736679671501,3.2078,3247.9,3247.2,0.4574]
[1736679671697,3.2078,3247.9,3247.1,5.27640781]
[1736679671903,3.2078,3247.9,3247.1,0.4493]
[1736679672202,5.117,3247.8,3247.1,0.4493]
[1736679672405,0.9212,3247.7,3247.1,0.4493]
[1736679672601,0.9212,3247.7,3247.0,8.97450781]
[1736679672602,1.4015,3247.7,3247.0,8.03490781]
[1736679672799,0.15241863,3247.5,3247.0,48.83490781]
[1736679672998,0.15241863,3247.5,3247.0,44.0078]
[1736679673304,0.15241863,3247.5,3247.0,3.2078]
[1736679674707,0.15241863,3247.5,3246.9,3.2078]
[1736679683623,3.2078,3247.3,3246.7,0.9306]
[1736679683824,0.8846,3247.2,3246.7,0.9306]
[1736679684026,1.3447,3247.2,3246.7,0.9306]
[1736679686027,0.15484256,3247.0,3246.7,0.9306]
[1736679691327,0.15484256,3247.0,3246.7,0.4493]
[1736679694034,0.15484256,3247.0,3246.6,3.2078]
[1736679695428,3.2078,3246.9,3246.4,0.8857]
[1736679695628,3.2078,3246.5,3246.4,0.8857]
[1736679695832,3.2078,3246.5,3246.2,0.4789]
[1736679696029,0.8865,3246.4,3246.2,0.4789]
[1736679696734,0.8865,3246.4,3246.3,0.4543]
[1736679697536,0.4469,3246.4,3246.3,0.4543]
[1736679697731,0.4469,3246.4,3246.3,0.917]
[1736679700838,0.60265953,3246.4,3246.3,0.917]
[1736679701439,0.60265953,3246.4,3245.7,3.2078]
[1736679701641,0.9101,3246.3,3245.8,1.3529]
[1736679703442,1.19,3246.3,3245.8,1.3529]
[1736679710246,0.2799,3246.3,3245.8,1.3529]
[1736679712342,5.3969,3246.3,3245.8,1.3529]
[1736679716950,0.15515183,3245.9,3245.8,1.3529]
[1736679720949,0.16543651,3245.9,3245.8,1.3529]
[1736679722655,0.16543651,3245.9,3245.5,3.2078]
[1736679722859,3.37323651,3245.9,3245.3,0.4534]
[1736679723158,0.01028468,3245.6,3245.3,0.4534]
[1736679724059,0.01028468,3245.5,3245.3,0.4534]
[1736679725145,0.01028468,3245.4,3245.3,0.4534]
[1736679727555,0.21338468,3245.4,3245.3,0.4534]
[1736679727854,0.22393608,3245.4,3245.3,0.4534]
[1736679730653,0.30093608,3245.4,3245.3,0.4534]
[1736679732855,0.45489255,3245.4,3245.3,0.4534]
[1736679736762,0.46003806,3245.4,3245.3,0.4534]
[1736679737457,0.46518357,3245.4,3245.3,0.4534]
[1736679737966,4.4158,3246.9,3245.3,0.4534]
[1736679738162,4.4158,3246.9,3245.9,3.2078]
[1736679738163,5.7776,3246.9,3245.9,3.2078]
[1736679738358,10.8946,3246.9,3246.0,1.393]
[1736679738558,3.2078,3246.4,3246.0,1.393]
[1736679738862,0.4597,3246.3,3246.0,1.393]
[1736679740159,0.01561197,3246.2,3246.0,1.393]
[1736679741058,0.01561197,3246.1,3246.0,1.393]
[1736679741258,0.01897521,3246.1,3246.0,1.393]
[1736679746964,0.17224897,3246.1,3246.0,1.393]
[1736679751567,0.17224897,3246.1,3245.9,3.2078]
[1736679751769,0.4525,3246.0,3245.9,3.2078]
[1736679752077,1.3905,3246.0,3245.7,4.82710781]
[1736679752270,0.01897521,3245.9,3245.7,4.82710781]
[1736679752671,0.01897521,3245.9,3245.3,0.4414]
[1736679753272,0.01897521,3245.6,3245.3,0.4414]
[1736679754173,0.01897521,3245.6,3245.2,3.2078]
[1736679754375,0.01897521,3245.4,3244.8,8.03490781]
[1736679755181,0.01897521,3245.4,3244.8,3.2078]
[1736679755382,0.01897521,3245.1,3244.8,3.2078]
[1736679756277,6.0448,3245.5,3244.8,3.2078]
[1736679756478,0.01897521,3245.0,3244.8,3.2078]
[1736679757484,0.01897521,3244.9,3244.8,3.2078]
[1736679760986,0.17596606,3244.9,3244.8,3.2078]
[1736679764281,0.17596606,3244.9,3244.0,8.03490781]
[1736679764481,0.01897521,3244.5,3244.0,4.82710781]
[1736679764687,0.01897521,3244.5,3244.1,0.4607]
[1736679765489,0.15699085,3244.9,3244.4,3.18882479]
[1736679765689,0.15699085,3244.9,3244.5,0.9096]
[1736679765986,0.15699085,3244.9,3244.6,0.4607]
[1736679767092,0.15699085,3244.9,3244.5,0.4401]
[1736679767292,3.2078,3244.8,3244.3,4.82710781]
[1736679767790,0.15699085,3244.9,3244.2,0.9]
[1736679772594,3.2078,3244.8,3244.2,0.9]
[1736679777797,0.4554,3245.0,3244.2,0.9]
[1736679778097,3.2078,3244.8,3244.2,0.9]
[1736679779193,0.15279692,3244.3,3244.2,0.9]
[1736679783390,0.15182704,3244.3,3244.2,0.9]
[1736679789501,0.15182704,3244.3,3244.0,3.6479]
[1736679790504,0.4703,3244.2,3244.0,0.4401]
[1736679790706,0.9511,3244.2,3244.0,0.4401]
[1736679791191,0.9511,3244.2,3243.5,3.2078]
[1736679791395,0.9511,3244.2,3243.5,3.6834]
[1736679798004,0.9511,3244.2,3243.6,40.8]
[1736679798394,0.9511,3244.2,3243.5,3.6834]
[1736679799202,0.15324428,3244.3,3243.5,3.6834]
[1736679799900,0.15324428,3244.3,3243.6,40.8]
[1736679802507,0.15324428,3244.3,3243.5,8.51050781]
[1736679803007,0.15324428,3244.3,3243.6,40.8]
[1736679804406,0.15324428,3244.3,3243.5,8.51050781]
[1736679804906,0.15324428,3244.3,3243.6,4.82710781]
[1736679805106,1.3356,3244.2,3243.6,4.82710781]
[1736679805903,1.3356,3244.2,3243.5,3.6834]
[1736679806608,3.2078,3244.0,3243.5,0.4756]
[1736679807109,0.15776398,3243.7,3243.5,0.4756]
[1736679814610,0.15776398,3243.7,3243.2,4.82710781]
[1736679814913,4.541,3243.6,3243.2,4.82710781]
[1736679815814,4.541,3243.6,3243.1,0.4816]
[1736679816513,3.2078,3243.6,3243.1,0.4816]
[1736679818209,3.2078,3243.5,3243.1,0.4816]
[1736679818709,0.15776398,3243.7,3243.1,0.4816]
[1736679818914,3.2078,3243.5,3243.1,0.4816]
[1736679821618,3.2078,3243.5,3243.1,5.30870781]
[1736679821817,2.1393,3244.0,3243.3,3.2078]
[1736679821818,0.9293,3244.0,3243.3,3.2078]
[1736679822017,0.9293,3244.0,3243.4,0.9202]
[1736679822920,0.15667294,3243.5,3243.4,0.9202]
[1736679826519,0.15667294,3243.5,3243.1,8.51650781]
[1736679826520,3.36447294,3243.5,3243.1,4.82710781]
[1736679826723,0.15667294,3243.5,3243.2,0.4446]
[1736679830623,0.15667294,3243.5,3243.2,5.27170781]
[1736679831422,0.15667294,3243.5,3243.3,4.82710781]
[1736679835529,1.3694,3244.0,3243.3,4.82710781]
[1736679837336,1.3694,3244.0,3243.4,4.82710781]
[1736679838530,3.2078,3243.8,3243.4,4.82710781]
[1736679839135,3.2078,3243.8,3243.4,5.26390781]
[1736679839529,0.15435584,3243.5,3243.4,5.26390781]
[1736679839730,0.15435584,3243.5,3243.4,5.72110781]
[1736679840030,0.15435584,3243.5,3243.4,0.894]
[1736679844136,3.2078,3244.2,3243.4,4.1018]
[1736679844326,3.2078,3244.2,3243.8,3.2078]
[1736679844524,3.2078,3244.2,3243.9,1.4144]
[1736679846135,3.2078,3244.2,3244.1,4.82710781]
[1736679847129,3.2078,3244.2,3244.1,6.83328202]
[1736679847334,0.4759,3244.8,3244.1,6.83328202]
[1736679847532,3.65955379,3245.5,3244.7,3.2078]
[1736679847742,4.11305379,3245.5,3244.8,1.3779]
[1736679847936,3.6613,3245.5,3244.8,1.3779]
[1736679848137,3.6613,3245.5,3244.9,40.8]
[1736679848737,0.4535,3245.5,3244.9,40.8]
[1736679849439,0.4535,3245.5,3244.9,45.64539947]
[1736679850337,0.4535,3245.5,3244.9,40.8]
[1736679850933,0.15707112,3245.2,3244.9,40.8]
[1736679851436,0.15707112,3245.2,3244.8,1.3779]
[1736679852441,0.15707112,3245.2,3244.8,0.9076]
[1736679855834,0.15707112,3245.2,3244.8,0.442]
[1736679856038,0.4385,3245.1,3244.8,0.442]
[1736679857139,0.4385,3245.1,3244.7,3.2078]
[1736679857645,0.4585,3245.0,3244.7,3.2078]
[1736679858154,0.457,3244.9,3244.7,3.2078]
[1736679862645,0.457,3244.9,3244.5,0.4541]
[1736679867846,3.2078,3245.2,3244.5,0.4541]
[1736679868046,3.2078,3245.2,3244.6,0.4744]
[1736679868251,3.2078,3245.2,3244.7,40.8]
[1736679868452,3.2078,3245.2,3244.8,0.4533]
[1736679870751,0.4477,3245.3,3244.8,0.4533]
[1736679871251,0.895,3245.3,3244.9,0.4486]
[1736679875359,0.895,3245.3,3244.1,4.4228]
[1736679875563,0.895,3245.3,3244.3,0.932]
[1736679877960,3.2078,3245.1,3244.3,0.932]
[1736679879261,0.15076206,3244.6,3244.3,0.932]
[1736679880463,3.2078,3245.1,3244.3,0.932]
[1736679882763,3.2078,3244.9,3244.3,0.932]
[1736679883759,0.15202514,3244.4,3244.3,0.932]
[1736679888368,0.15202514,3244.4,3244.3,0.4524]
[1736679892775,0.15202514,3244.4,3244.3,0.8981]
[1736679893274,0.15202514,3244.4,3244.3,5.74349947]
[1736679894175,0.15202514,3244.4,3244.3,0.8981]
[1736679895474,3.2078,3245.0,3244.3,0.8981]
[1736679896277,0.9148,3244.9,3244.3,5.74349947]
[1736679896870,0.4713,3244.8,3244.3,5.74349947]
[1736679897384,0.4713,3244.8,3244.3,0.8981]
[1736679897574,0.1528139,3244.4,3244.3,0.8981]
[1736679900276,0.1528139,3244.4,3244.3,0.4524]
[1736679900877,0.1528139,3244.4,3244.2,4.84539947]
[1736679905780,0.1528139,3244.4,3244.1,5.28699947]
[1736679910392,0.4713,3244.8,3244.1,0.4416]
[1736679911091,0.15639075,3244.2,3244.1,0.4416]
[1736679911292,0.15639075,3244.2,3244.1,5.28699947]
[1736679914494,0.15639075,3244.2,3244.1,0.4416]
[1736679918687,0.15639075,3244.2,3244.0,4.84539947]
[1736679918893,4.5645,3244.1,3244.0,4.84539947]
[1736679920002,4.5645,3244.1,3243.6,0.4482]
[1736679921398,4.5645,3244.1,3243.7,0.4449]
[1736679925203,4.1247,3244.1,3243.7,0.4449]
[1736679925605,3.2078,3244.1,3243.7,0.4449]
[1736679925908,0.15764506,3243.8,3243.7,0.4449]
[1736679940413,0.4594,3244.0,3243.7,0.4449]
[1736679942816,3.2078,3244.1,3243.7,0.4449]
[1736679943012,0.4585,3244.4,3243.7,3.6527]
[1736679943318,0.9003,3244.7,3243.7,3.6527]
[1736679943521,1.345,3244.7,3243.7,3.6527]
[1736679943813,3.2078,3244.4,3243.8,40.8]
[1736679946817,5.121,3245.5,3243.8,40.8]
[1736679946818,3.2078,3245.1,3244.1,3.2078]
[1736679947019,3.2078,3245.1,3244.2,1.3567]
[1736679947716,3.2078,3245.1,3244.2,6.20209947]
[1736679949117,3.2078,3245.1,3244.5,3.2078]
[1736679949313,0.4356,3245.5,3244.6,40.8]
[1736679949513,0.4356,3245.5,3244.7,0.9263]
[1736679949713,0.4356,3245.5,3244.7,1.3613]
[1736679950013,0.4356,3245.5,3244.9,3.2078]
[1736679950622,0.4356,3245.5,3244.9,8.05319947]
[1736679950821,0.15777372,3245.6,3244.9,8.05319947]
[1736679951612,0.33339805,3246.1,3245.3,3.2078]
[1736679951813,0.33339805,3246.1,3245.4,1.3555]
[1736679952022,3.6553,3246.2,3245.4,1.3555]
[1736679954819,3.6553,3246.2,3245.5,40.8]
[1736679954820,3.2078,3246.2,3245.5,40.8]
[1736679955015,0.15728041,3245.9,3245.5,40.8]
[1736679955215,0.15728041,3245.9,3245.7,3.2078]
[1736679955420,3.2078,3246.4,3245.7,3.2078]
[1736679955720,0.4562,3246.6,3245.7,3.2078]
[1736679959423,3.2078,3246.8,3246.1,3.2078]
[1736679959618,3.2078,3246.8,3246.2,1.3599]
[1736679961323,0.4675,3246.7,3246.2,1.3599]
[1736679961625,0.8986,3246.6,3246.2,1.3599]
[1736679965529,0.4499,3246.6,3246.2,1.3599]
[1736679971739,0.911,3246.6,3246.2,1.3599]
[1736679972938,0.15676218,3246.4,3246.2,1.3599]
[1736679977139,0.15676218,3246.4,3246.2,0.4392]
[1736679983536,3.2078,3246.7,3246.2,0.4392]
[1736679985039,3.2078,3247.1,3246.4,3.2078]
[1736679985338,3.2078,3247.1,3246.5,0.8947]
[1736679985540,3.2078,3247.1,3246.6,40.8]
[1736679986037,3.2078,3247.1,3246.7,0.458]
[1736679987541,0.150755,3247.0,3246.7,0.458]
[1736679988041,3.2078,3247.1,3246.7,0.458]
[1736679990046,3.2078,3247.5,3246.7,0.458]
[1736679992440,0.4561,3247.8,3246.7,0.458]
[1736679992644,3.2078,3247.5,3246.7,3.6658]
[1736679993041,3.2078,3247.5,3246.7,8.51119947]
[1736679993346,3.2078,3247.9,3247.1,3.2078]
[1736679993540,3.2078,3247.9,3247.2,2.5784]
[1736679994345,3.2078,3247.9,3247.2,7.42379947]
[1736679995547,3.2078,3247.9,3247.3,4.84539947]
[1736679996347,0.4495,3248.1,3247.2,2.5784]
[1736679998151,0.4495,3248.1,3247.2,2.8226386]
[1736679999350,0.4495,3248.1,3247.5,3.2078]
[1736679999550,3.2098,3248.5,3247.5,3.2078]
[1736680000248,0.002,3248.5,3248.3,3.2078]
[1736680000456,0.002,3248.5,3248.4,0.9101]
[1736680001051,0.002,3248.5,3248.4,0.4747]
[1736680005050,3.6598,3249.0,3248.4,0.4747]
[1736680005246,3.2078,3249.4,3248.4,0.4747]
[1736680005850,3.2078,3249.4,3248.5,40.8]
[1736680007758,0.00131253,3249.0,3248.5,40.8]
[1736680008952,0.00131253,3249.0,3248.4,0.4747]
[1736680009356,0.00131253,3249.0,3248.4,0.72172471]
[1736680009558,0.00131253,3249.0,3248.4,1.93872471]
[1736680009856,0.00131253,3249.0,3248.4,1.6917]
[1736680019862,0.00131253,3249.0,3248.7,3.2078]
[1736680020066,0.00131253,3249.0,3248.8,0.9242]
[1736680020467,0.00131253,3249.0,3248.9,0.4412]
[1736680026275,3.2078,3249.4,3248.9,0.4412]
[1736680037586,0.15328898,3249.6,3248.9,0.4412]
[1736680038187,5.73713726,3250.9,3249.3,3.2078]
[1736680038188,3.2078,3250.2,3249.3,3.2078]
[1736680038488,3.2078,3250.2,3249.4,2.6048]
[1736680038689,3.2078,3250.2,3249.5,40.8]
[1736680040285,0.4347,3250.1,3249.5,40.8]
[1736680040684,0.8692,3250.0,3249.5,40.8]
[1736680040882,0.4347,3250.0,3249.5,40.8]
[1736680041486,0.4347,3250.0,3249.5,41.046437]
[1736680042782,0.4347,3250.0,3249.4,1.3828]
[1736680043187,0.4347,3250.0,3249.4,42.1828]
[1736680043791,3.2078,3250.2,3249.4,42.1828]
[1736680043982,1.3666,3250.1,3249.4,42.1828]
[1736680045389,1.3666,3250.1,3249.4,1.3828]
[1736680045788,1.3666,3250.1,3249.4,42.1828]
[1736680047695,0.15759466,3249.9,3249.4,42.1828]
[1736680048182,0.0096,3249.8,3249.4,42.1828]
[1736680056696,0.0096,3249.8,3249.5,3.2078]
[1736680057399,0.0096,3249.8,3249.6,40.8]
[1736680062301,0.0432,3249.9,3249.6,40.8]
[1736680063691,0.0099,3249.8,3249.6,40.8]
[1736680067599,3.2078,3250.9,3249.6,40.8]
[1736680067902,0.468,3250.8,3250.3,3.2078]
[1736680068104,0.468,3250.8,3250.4,2.6074]
[1736680068300,0.468,3250.8,3250.4,42.4831]
[1736680068503,0.4511,3250.7,3250.4,1.6831]
[1736680069003,0.4633,3250.6,3250.4,1.224]
[1736680069415,0.4633,3250.6,3250.4,1.6831]
[1736680069993,0.4633,3250.6,3250.4,42.4831]
[1736680070602,0.4633,3250.6,3250.4,1.6831]
[1736680070801,0.4633,3250.6,3250.4,2.6276]
[1736680074201,0.468,3250.8,3250.4,2.6276]
[1736680074614,1.3733,3250.8,3250.4,2.6276]
[1736680075310,6.39396552,3251.9,3250.7,3.2078]
[1736680075311,3.2078,3251.8,3250.7,3.2078]
[1736680075613,0.44973483,3251.9,3251.5,3.2078]
[1736680075805,0.9252,3251.8,3251.5,3.2078]
[1736680076812,3.2078,3251.6,3250.9,4.4318]
[1736680077107,3.2078,3251.6,3250.7,2.56829621]
[1736680077317,0.4515,3251.5,3250.7,2.56829621]
[1736680077815,0.4515,3251.5,3250.5,5.1316703]
[1736680080211,0.4515,3251.5,3250.6,3.2078]
[1736680080608,0.4515,3251.5,3250.6,4.4318]
[1736680083716,0.4515,3251.5,3250.8,3.2078]
[1736680084217,0.4515,3251.5,3250.9,0.4345]
[1736680085420,0.15703427,3251.9,3251.2,3.2078]
[1736680085620,0.4674,3251.8,3251.3,0.8974]
[1736680085823,0.9165,3251.8,3251.3,0.4568]
[1736680088022,0.9165,3251.8,3251.2,3.2078]
[1736680088720,0.9165,3251.8,3250.8,5.30219947]
[1736680089024,3.2078,3251.6,3250.8,0.4568]
[1736680091424,3.2078,3251.6,3251.0,3.2078]
[1736680091625,3.2078,3251.6,3251.1,0.9171]
[1736680091924,0.4674,3251.8,3251.1,0.9171]
[1736680092125,0.4674,3251.8,3251.2,0.4399]
[1736680096128,3.6479,3251.9,3251.2,0.4399]
[1736680096829,0.4373,3251.8,3251.2,0.4399]
[1736680098224,3.6479,3251.9,3251.2,0.4399]
[1736680107535,0.15591234,3251.3,3251.0,3.2078]
[1736680107739,0.4583,3251.2,3250.8,0.4412]
[1736680108036,1.3641,3251.2,3250.8,0.4412]
[1736680116638,3.36371234,3251.3,3250.8,0.4412]
[1736680116840,1.4132,3251.2,3250.8,0.4412]
[1736680120541,1.4132,3251.2,3250.6,8.05319947]
[1736680120736,0.15193365,3250.9,3250.6,8.49859947]
[1736680121638,0.4373,3250.8,3250.6,4.84539947]
[1736680121837,0.8974,3250.7,3250.6,4.84539947]
[1736680122337,0.8974,3250.7,3250.3,4.84539947]
[1736680123744,0.8974,3250.7,3250.0,44.0078]
[1736680125141,0.15193365,3250.9,3250.4,3.2078]
[1736680125346,0.15193365,3250.9,3250.5,0.444]
[1736680125547,0.15193365,3250.9,3250.6,0.4636]
[1736680128751,0.15193365,3250.9,3250.5,0.444]
[1736680128947,1.3607,3250.8,3250.5,0.444]
[1736680130750,1.3607,3250.8,3250.4,3.2078]
[1736680132956,1.3607,3250.8,3250.1,3.6718]
[1736680136459,0.15570822,3250.5,3250.1,3.6718]
[1736680137363,0.15570822,3250.5,3250.1,0.464]
[1736680137567,0.4817,3250.4,3250.1,0.464]
[1736680137772,0.9154,3250.3,3250.1,0.464]
[1736680139762,0.9154,3250.3,3249.9,0.92]
[1736680140366,0.9154,3250.3,3249.8,0.4681]
[1736680153283,3.2078,3250.1,3249.8,0.4681]